bitfinex-derivatives/quotes_SOLF0:USTF0_20250501
["timestamp","ask_amount","ask_price","bid_price","bid_amount"]
[1746069457931,23.76,148.91,148.82,23.76]
[1746069459232,6.7167,148.88,148.85,6.7177]
[1746069462633,6.7169,148.87,148.84,6.7181]
[1746069463534,6.7169,148.87,148.82,23.76]
[1746069463535,6.7174,148.86,148.83,6.7185]
[1746069464134,6.7186,148.84,148.81,10.7859]
[1746069465835,6.7187,148.83,148.81,4.0664]
[1746069466129,7.10840388,148.86,148.76,23.74]
[1746069466327,6.7192,148.82,148.79,6.7201]
[1746069466723,23.74,148.83,148.76,23.74]
[1746069467026,30.4591,148.83,148.76,23.74]
[1746069467233,23.74,148.83,148.76,23.74]
[1746069467431,6.7195,148.82,148.79,6.7204]
[1746069468734,23.74,148.83,148.75,6.1918]
[1746069468735,30.84840388,148.83,148.75,6.1918]
[1746069469239,6.7198,148.81,148.77,6.721]
[1746069469639,30.84840388,148.83,148.77,6.721]
[1746069470438,6.7202,148.8,148.77,6.721]
[1746069470734,30.84840388,148.83,148.75,6.1918]
[1746069471240,6.7207,148.79,148.76,6.7218]
[1746069474944,6.7207,148.79,148.75,6.1918]
[1746069474945,6.7199,148.81,148.75,6.1918]
[1746069475243,30.84840388,148.83,148.75,6.1918]
[1746069475945,6.72,148.81,148.77,6.7213]
[1746069476946,30.84840388,148.83,148.76,6.7217]
[1746069477246,23.74,148.83,148.75,6.1918]
[1746069477839,6.7198,148.81,148.77,6.7211]
[1746069478349,23.74,148.83,148.77,6.7211]
[1746069478547,23.74,148.83,148.76,6.7216]
[1746069479047,6.721,148.78,148.75,12.914]
[1746069479548,6.721,148.78,148.75,10.9182]
[1746069480249,6.7207,148.79,148.75,10.9182]
[1746069481247,23.74,148.83,148.75,4.196]
[1746069481444,23.74,148.83,148.76,1.9268]
[1746069481647,23.76,148.86,148.77,30.86840388]
[1746069482849,23.76,148.86,148.77,23.76]
[1746069483148,23.76,148.86,148.83,6.7184]
[1746069485743,23.76,148.86,148.83,22.41]
[1746069486249,6.7181,148.85,148.83,22.41]
[1746069487651,6.7182,148.84,148.83,22.41]
[1746069488252,6.718,148.85,148.83,22.41]
[1746069488755,6.7182,148.84,148.83,22.41]
[1746069489447,6.7198,148.81,148.78,6.7208]
[1746069489641,6.7198,148.81,148.77,23.76]
[1746069489850,30.84840388,148.82,148.75,4.196]
[1746069490042,6.7208,148.79,148.76,6.7217]
[1746069490654,6.721,148.78,148.75,10.9181]
[1746069492157,7.10840388,148.79,148.71,1.9693]
[1746069492754,6.7211,148.78,148.74,6.7224]
[1746069494153,6.7211,148.78,148.75,6.7223]
[1746069495863,6.7206,148.79,148.76,6.7218]
[1746069496158,23.74,148.81,148.71,1.9693]
[1746069496354,6.7197,148.81,148.78,6.7207]
[1746069496658,23.74,148.82,148.74,23.74]
[1746069496846,23.74,148.82,148.75,3.9281]
[1746069497052,23.74,148.82,148.8,6.72]
[1746069498458,30.4593,148.82,148.79,6.7203]
[1746069499254,23.74,148.82,148.75,3.9281]
[1746069499457,23.74,148.85,148.75,3.9281]
[1746069500060,6.719,148.83,148.75,3.9281]
[1746069500658,6.7194,148.82,148.75,3.9281]
[1746069500959,23.74,148.85,148.75,3.9281]
[1746069501658,6.7194,148.82,148.78,6.7206]
[1746069501861,6.7194,148.82,148.75,3.9281]
[1746069502160,6.7194,148.82,148.79,6.7205]
[1746069502360,6.7188,148.83,148.75,3.9281]
[1746069502761,6.7188,148.83,148.8,6.7197]
[1746069504965,6.7184,148.84,148.81,6.7195]
[1746069505158,23.74,148.85,148.75,3.9281]
[1746069506359,23.74,148.85,148.77,7.10840388]
[1746069506558,23.74,148.85,148.78,25.8354]
[1746069506859,30.4579,148.85,148.82,6.7188]
[1746069508169,6.7185,148.84,148.81,6.7195]
[1746069510064,6.7185,148.84,148.78,25.8354]
[1746069510065,6.7187,148.83,148.8,6.7199]
[1746069512367,6.7194,148.82,148.79,6.7204]
[1746069512573,23.74,148.85,148.75,27.6681]
[1746069512977,6.7196,148.82,148.75,27.6681]
[1746069513675,6.7188,148.83,148.75,27.6681]
[1746069513875,23.74,148.85,148.75,27.6681]
[1746069514276,6.7185,148.84,148.81,6.7194]
[1746069515778,6.7185,148.84,148.82,6.7191]
[1746069515976,30.458,148.85,148.82,6.7191]
[1746069516275,23.74,148.85,148.83,6.7185]
[1746069516677,23.74,148.85,148.79,25.8151]
[1746069517175,23.74,148.85,148.82,6.7188]
[1746069517176,30.4578,148.85,148.82,6.7188]
[1746069517476,30.4578,148.85,148.79,25.8151]
[1746069517776,23.74,148.85,148.83,6.7187]
[1746069518079,23.74,148.85,148.79,25.8151]
[1746069518374,532.4,148.91,148.79,25.8151]
[1746069518375,23.74,148.88,148.79,25.8151]
[1746069518678,6.717,148.87,148.84,6.7179]
[1746069519583,23.74,148.88,148.8,7.10840388]
[1746069519878,23.74,148.88,148.81,3.9839]
[1746069521087,6.7169,148.87,148.84,6.718]
[1746069521284,6.7169,148.87,148.81,3.9839]
[1746069521476,23.74,148.88,148.81,3.9839]
[1746069521676,6.7174,148.86,148.83,6.7184]
[1746069522483,23.74,148.88,148.81,3.9839]
[1746069522988,6.7188,148.83,148.8,6.7199]
[1746069524189,7.10840388,148.86,148.8,6.7199]
[1746069524190,6.7192,148.82,148.8,6.7199]
[1746069525494,6.7192,148.82,148.79,6.7203]
[1746069525690,6.7196,148.81,148.78,5.32]
[1746069525995,6.7196,148.81,148.78,6.7207]
[1746069526291,6.7201,148.8,148.76,27.9317]
[1746069526786,7.10840388,148.83,148.77,6.7212]
[1746069527085,6.7203,148.8,148.77,6.7212]
[1746069527794,6.7206,148.79,148.77,6.7212]
[1746069528190,7.10840388,148.83,148.77,6.7212]
[1746069528795,7.10840388,148.83,148.76,4.1917]
[1746069528991,23.74,148.84,148.76,4.1917]
[1746069529299,6.7196,148.81,148.76,4.1917]
[1746069529485,6.7196,148.81,148.78,6.7208]
[1746069529690,7.10840388,148.83,148.76,9.5217]
[1746069530095,7.10840388,148.83,148.76,16.2432]
[1746069530797,6.7206,148.79,148.76,16.2432]
[1746069531193,7.10840388,148.83,148.76,12.0515]
[1746069531395,7.10840388,148.83,148.76,5.33]
[1746069532003,6.7214,148.77,148.76,5.33]
[1746069532594,6.7214,148.77,148.74,6.7225]
[1746069533597,6.7214,148.77,148.73,23.74]
[1746069533598,6.7219,148.76,148.73,30.463]
[1746069533996,30.84840388,148.8,148.73,23.74]
[1746069534599,30.84840388,148.8,148.72,4.0713]
[1746069535200,6.7217,148.77,148.73,6.7228]
[1746069535496,30.84840388,148.8,148.73,6.7228]
[1746069537395,6.7217,148.77,148.73,6.7228]
[1746069537600,30.84840388,148.8,148.72,4.0713]
[1746069537997,23.74,148.8,148.72,4.0713]
[1746069538602,6.7206,148.79,148.72,4.0713]
[1746069539403,6.7206,148.79,148.76,6.7218]
[1746069539606,6.7206,148.79,148.72,4.0713]
[1746069539795,6.7211,148.78,148.72,4.0713]
[1746069540704,6.7211,148.78,148.75,6.722]
[1746069541103,6.7207,148.79,148.72,4.0713]
[1746069541303,23.74,148.8,148.72,4.0713]
[1746069541703,6.7205,148.79,148.72,4.0713]
[1746069542207,6.7212,148.78,148.72,4.0713]
[1746069542908,6.7215,148.77,148.72,4.0713]
[1746069543203,30.84840388,148.8,148.72,4.0713]
[1746069543399,30.84840388,148.8,148.74,6.7225]
[1746069543603,30.84840388,148.8,148.72,4.0713]
[1746069544001,30.84840388,148.8,148.72,6.7234]
[1746069544203,30.84840388,148.8,148.7,23.74]
[1746069544607,6.7232,148.74,148.71,6.7238]
[1746069547609,6.7232,148.73,148.7,30.4644]
[1746069550219,6.7232,148.73,148.7,6.7244]
[1746069550911,6.7232,148.73,148.71,6.7241]
[1746069552113,6.7229,148.74,148.71,6.7241]
[1746069552919,23.74,148.76,148.68,4.053]
[1746069553117,23.74,148.76,148.68,11.16140388]
[1746069553410,30.4619,148.76,148.73,6.7228]
[1746069554008,23.74,148.76,148.68,11.16140388]
[1746069554215,23.74,148.76,148.74,6.7225]
[1746069555116,23.74,148.76,148.75,6.7223]
[1746069555412,23.76,148.79,148.71,23.76]
[1746069555617,30.4809,148.79,148.75,6.722]
[1746069556013,23.76,148.79,148.75,6.722]
[1746069556216,23.76,148.79,148.73,24.6931]
[1746069556713,6.7218,148.77,148.73,24.6931]
[1746069557014,23.76,148.79,148.73,24.6931]
[1746069557311,23.76,148.79,148.73,17.97]
[1746069559006,6.7228,148.74,148.73,17.97]
[1746069560415,30.4628,148.74,148.73,17.97]
[1746069568327,30.4628,148.74,148.73,1e-08]
[1746069568622,6.7242,148.71,148.68,10.7783]
[1746069569227,6.7242,148.71,148.68,6.7253]
[1746069569424,6.7247,148.7,148.67,6.7259]
[1746069569624,23.74,148.74,148.65,26.05381]
[1746069570124,6.7251,148.69,148.66,6.7261]
[1746069570824,6.7251,148.69,148.65,26.05381]
[1746069570825,6.7257,148.68,148.65,6.97421]
[1746069571324,6.7257,148.68,148.65,0.24771]
[1746069571925,6.7257,148.68,148.65,6.97441]
[1746069572126,6.7252,148.69,148.65,0.24771]
[1746069572323,7.10840388,148.72,148.64,4.0304]
[1746069572521,23.74,148.74,148.67,6.7255]
[1746069573228,6.7245,148.71,148.67,6.7255]
[1746069573431,23.74,148.74,148.67,6.7255]
[1746069573829,6.7247,148.7,148.67,6.7255]
[1746069576230,6.7247,148.7,148.68,6.7254]
[1746069576431,6.7243,148.71,148.68,6.7254]
[1746069577833,23.74,148.74,148.64,4.0304]
[1746069578434,6.7239,148.72,148.64,4.0304]
[1746069579736,6.7242,148.71,148.68,6.7251]
[1746069580036,23.74,148.74,148.68,6.7251]
[1746069580935,23.74,148.74,148.67,6.7257]
[1746069581739,6.7248,148.7,148.67,6.7257]
[1746069582035,23.74,148.74,148.66,6.7262]
[1746069582439,6.7256,148.68,148.64,4.0304]
[1746069583142,6.7256,148.68,148.65,6.7267]
[1746069583839,6.726,148.67,148.64,10.7576]
[1746069585335,6.726,148.67,148.65,6.7268]
[1746069585535,6.7255,148.68,148.65,6.7268]
[1746069585836,23.76,148.7,148.67,6.7256]
[1746069586430,30.4848,148.7,148.67,6.7256]
[1746069586640,30.4848,148.7,148.68,6.7254]
[1746069587540,30.4848,148.7,148.67,6.7258]
[1746069588641,23.76,148.7,148.64,4.0304]
[1746069589942,6.7253,148.69,148.66,6.7263]
[1746069591341,30.4848,148.7,148.67,6.7258]
[1746069591544,23.76,148.7,148.64,4.0304]
[1746069591744,23.76,148.73,148.64,4.0304]
[1746069592747,6.7242,148.71,148.64,4.0304]
[1746069593745,6.7246,148.7,148.67,6.7256]
[1746069595947,6.7246,148.7,148.67,12.1356]
[1746069596442,13.4425,148.78,148.67,5.41]
[1746069596648,7.10840388,148.73,148.67,5.41]
[1746069596849,23.76,148.72,148.67,5.41]
[1746069597150,6.7255,148.68,148.67,5.41]
[1746069598742,23.76,148.72,148.67,5.41]
[1746069599348,6.725,148.69,148.67,5.41]
[1746069599548,23.76,148.72,148.67,5.41]
[1746069600147,6.7255,148.68,148.67,5.41]
[1746069604250,7.10840388,148.71,148.67,5.41]
[1746069606347,6.7255,148.68,148.67,5.41]
[1746069607250,6.7247,148.7,148.67,12.1358]
[1746069607452,23.76,148.72,148.67,12.1358]
[1746069607646,23.76,148.72,148.67,5.41]
[1746069608451,6.7244,148.71,148.67,5.41]
[1746069609154,6.7244,148.71,148.68,6.7254]
[1746069610855,6.7244,148.71,148.68,8.6949]
[1746069614057,30.4838,148.72,148.69,6.725]
[1746069615057,6.7234,148.73,148.68,1.9695]
[1746069615455,23.74,148.75,148.68,1.9695]
[1746069615659,6.7233,148.73,148.69,6.7248]
[1746069615956,6.7233,148.73,148.68,1.9695]
[1746069616257,6.7233,148.73,148.69,2.0982]
[1746069617359,6.7233,148.73,148.7,6.7244]
[1746069617958,23.74,148.75,148.69,2.0982]
[1746069618757,384.1692,148.83,148.7,23.74]
[1746069618758,23.74,148.78,148.7,23.74]
[1746069618957,6.7222,148.76,148.73,6.7229]
[1746069619959,6.7222,148.76,148.74,6.7227]
[1746069620156,6.7215,148.77,148.74,6.7227]
[1746069620357,23.74,148.78,148.74,6.7227]
[1746069620570,30.4612,148.78,148.75,6.7222]
[1746069621055,30.461,148.78,148.75,6.7222]
[1746069621255,23.74,148.81,148.73,6.7231]
[1746069621557,23.74,148.81,148.7,23.74]
[1746069621760,6.7215,148.77,148.73,6.7231]
[1746069622461,6.7215,148.77,148.74,6.7226]
[1746069622766,23.74,148.81,148.7,23.74]
[1746069623669,23.74,148.81,148.77,6.7211]
[1746069624270,6.7203,148.8,148.76,6.7217]
[1746069624970,6.7203,148.8,148.77,6.7214]
[1746069626173,6.7205,148.79,148.76,6.7217]
[1746069628569,6.7202,148.8,148.76,6.7217]
[1746069630068,6.7202,148.8,148.77,6.7214]
[1746069630970,6.7206,148.79,148.76,6.7217]
[1746069631673,6.7202,148.8,148.77,6.7212]
[1746069633572,7.10840388,148.83,148.75,3.9088]
[1746069633774,7.10840388,148.83,148.75,6.0108]
[1746069634676,6.7198,148.81,148.78,6.7206]
[1746069635375,6.7193,148.82,148.78,6.7206]
[1746069636074,6.7197,148.81,148.78,6.7206]
[1746069636276,7.10840388,148.83,148.79,6.7204]
[1746069636771,6.7194,148.82,148.79,6.7204]
[1746069638074,6.7196,148.81,148.79,6.7204]
[1746069638467,7.10840388,148.83,148.79,6.7204]
[1746069638773,23.72,148.84,148.78,23.72]
[1746069639975,23.72,148.84,148.75,29.7308]
[1746069640277,6.72,148.81,148.75,29.7308]
[1746069640779,6.72,148.81,148.78,6.7209]
[1746069644179,23.72,148.84,148.77,6.7211]
[1746069644375,7.10840388,148.83,148.75,29.7308]
[1746069644776,6.7206,148.79,148.76,6.7215]
[1746069644976,6.7206,148.79,148.75,29.7308]
[1746069645382,6.7202,148.8,148.75,29.7308]
[1746069645980,6.7202,148.8,148.77,6.7213]
[1746069647187,23.72,148.84,148.75,29.7308]
[1746069647686,30.82840388,148.84,148.75,29.7308]
[1746069648483,30.82840388,148.84,148.77,6.7212]
[1746069648484,6.7198,148.81,148.77,6.7212]
[1746069649088,6.7201,148.8,148.77,6.7212]
[1746069650492,30.82840388,148.84,148.78,6.7207]
[1746069650688,30.82840388,148.84,148.75,35.2008]
[1746069650993,6.7195,148.82,148.75,35.2008]
[1746069651685,6.7195,148.82,148.78,6.7205]
[1746069651885,6.7195,148.82,148.75,35.2008]
[1746069653188,23.72,148.84,148.75,35.2008]
[1746069653791,30.4386,148.84,148.8,6.7197]
[1746069654583,6.7187,148.83,148.8,6.7197]
[1746069656293,30.4384,148.84,148.81,6.7195]
[1746069659489,6.7184,148.84,148.81,6.7195]
[1746069660294,6.7174,148.86,148.83,6.7185]
[1746069660596,7.10840388,148.86,148.8,4.0826]
[1746069660789,6.7186,148.84,148.81,6.7193]
[1746069661295,6.7178,148.85,148.82,6.7189]
[1746069662091,13.82620388,148.86,148.8,4.0826]
[1746069662997,7.10840388,148.86,148.8,4.0826]
[1746069663399,23.72,148.87,148.8,4.0826]
[1746069663899,6.7176,148.86,148.82,6.7191]
[1746069666502,6.7179,148.85,148.82,6.7191]
[1746069667303,6.7179,148.85,148.83,6.7187]
[1746069667602,30.82840388,148.89,148.8,4.0826]
[1746069667803,30.82840388,148.89,148.8,6.0045]
[1746069668605,6.7175,148.86,148.83,6.7183]
[1746069668805,6.7175,148.86,148.8,6.0045]
[1746069669008,7.10840388,148.92,148.8,6.0045]
[1746069669205,6.7167,148.88,148.8,6.0045]
[1746069669507,4.55048801,148.87,148.81,4.55048801]
[1746069670007,4.55048801,148.87,148.84,6.7178]
[1746069670405,11.26738801,148.87,148.84,6.7178]
[1746069670605,11.26738801,148.87,148.81,4.55048801]
[1746069670606,4.55048801,148.87,148.83,6.7185]
[1746069670807,4.55048801,148.87,148.81,4.55048801]
[1746069671606,11.26758801,148.87,148.84,6.7182]
[1746069672805,6.7174,148.86,148.84,6.7182]
[1746069673210,4.55048801,148.87,148.84,6.7182]
[1746069673710,11.26758801,148.87,148.84,6.7182]
[1746069673906,4.55048801,148.87,148.85,6.7178]
[1746069674310,23.72,148.9,148.85,6.7178]
[1746069674607,11.26718801,148.88,148.85,6.7178]
[1746069675910,11.26718801,148.88,148.85,25.6278]
[1746069676212,6.717,148.87,148.85,18.91]
[1746069677208,6.717,148.87,148.85,25.6277]
[1746069677507,4.55048801,148.88,148.85,25.6277]
[1746069677508,11.26718801,148.88,148.85,25.6277]
[1746069677809,11.26718801,148.88,148.85,18.91]
[1746069678414,30.4357,148.9,148.87,6.7169]
[1746069678607,4.55048801,148.9,148.85,18.91]
[1746069679714,11.26618801,148.9,148.87,6.7165]
[1746069680412,28.25048801,148.91,148.85,28.95048801]
[1746069681211,28.25048801,148.91,148.89,6.7157]
[1746069682614,34.96558801,148.91,148.89,6.7157]
[1746069683614,11.26558801,148.91,148.89,6.7157]
[1746069684111,4.55048801,148.91,148.89,6.7157]
[1746069684406,23.7,148.94,148.86,4.0104]
[1746069684615,6.7144,148.93,148.9,6.7154]
[1746069685413,6.7131,148.96,148.89,4.55048801]
[1746069685713,6.7131,148.96,148.91,4.55048801]
[1746069686217,4.55048801,148.93,148.87,30.17118801]
[1746069686707,23.7,148.95,148.87,25.6207]
[1746069686911,4.55048801,148.91,148.87,23.7]
[1746069687313,4.55048801,148.91,148.87,30.4166]
[1746069687714,6.7156,148.9,148.87,30.4166]
[1746069688119,4.55048801,148.92,148.87,23.7]
[1746069689217,6.7154,148.91,148.88,6.7161]
[1746069689513,4.55048801,148.92,148.87,23.7]
[1746069690115,6.7158,148.9,148.87,30.4166]
[1746069691011,6.716,148.89,148.87,23.7]
[1746069691212,4.55048801,148.9,148.86,4.0104]
[1746069691417,4.55048801,148.9,148.85,24.4]
[1746069691621,6.7164,148.88,148.85,31.1175]
[1746069691813,4.55048801,148.9,148.85,31.1175]
[1746069692010,4.55048801,148.9,148.85,24.4]
[1746069692211,6.7163,148.89,148.86,6.7173]
[1746069693317,6.7165,148.88,148.86,6.7173]
[1746069693514,4.55048801,148.9,148.85,24.4]
[1746069693724,4.55048801,148.88,148.85,24.4]
[1746069693926,4.55048801,148.86,148.85,24.4]
[1746069694222,11.26778801,148.86,148.85,24.4]
[1746069694521,23.7,148.91,148.85,24.4]
[1746069694522,4.55048801,148.88,148.85,24.4]
[1746069695528,23.7,148.91,148.85,24.4]
[1746069696122,6.7168,148.88,148.85,24.4]
[1746069697620,6.7168,148.88,148.85,31.1178]
[1746069698221,6.7173,148.86,148.85,24.4]
[1746069698721,6.7173,148.86,148.85,18.91]
[1746069707026,6.7173,148.86,148.8,6.7198]
[1746069707027,6.719,148.83,148.8,6.7198]
[1746069707229,23.7,148.87,148.79,10.7321]
[1746069708429,6.7191,148.83,148.79,10.7321]
[1746069709127,23.7,148.87,148.79,4.0118]
[1746069709328,7.10875423,148.86,148.79,4.0118]
[1746069709730,6.7197,148.81,148.79,4.0118]
[1746069710631,6.7193,148.82,148.79,10.7323]
[1746069710826,7.10875423,148.86,148.79,4.0118]
[1746069711228,6.719,148.83,148.8,6.72]
[1746069712024,23.7,148.87,148.79,4.0118]
[1746069712732,23.7,148.87,148.79,11.12055423]
[1746069714136,6.7176,148.86,148.79,11.12055423]
[1746069714927,6.7176,148.86,148.83,6.7187]
[1746069715336,6.7178,148.85,148.83,6.7187]
[1746069717732,6.7175,148.86,148.83,6.7187]
[1746069718041,23.7,148.87,148.83,6.7187]
[1746069718438,6.7178,148.85,148.82,24.299]
[1746069719135,23.7,148.87,148.82,17.58]
[1746069720230,6.7187,148.83,148.82,17.58]
[1746069723039,6.7185,148.84,148.82,17.58]
[1746069724144,6.7187,148.83,148.82,17.58]
[1746069730945,6.7184,148.84,148.82,17.58]
[1746069732840,6.7187,148.83,148.82,17.58]
[1746069736445,6.7184,148.84,148.82,17.58]
[1746069740554,6.7178,148.85,148.82,24.299]
[1746069741150,6.7187,148.83,148.82,17.58]
[1746069743062,6.7184,148.84,148.82,17.58]
[1746069743857,6.7187,148.83,148.82,17.58]
[1746069750466,6.7184,148.84,148.82,17.58]
[1746069751668,6.718,148.85,148.82,24.2991]
[1746069752269,6.7182,148.84,148.82,17.58]
[1746069753170,6.7187,148.83,148.82,17.58]
[1746069754966,6.7187,148.83,148.8,6.7198]
[1746069756277,6.7187,148.83,148.8,12.2998]
[1746069757977,4.5525546,148.86,148.8,5.58]
[1746069759180,6.718,148.85,148.82,6.7188]
[1746069759579,23.7,148.87,148.8,10.1325546]
[1746069759779,23.7,148.87,148.82,4.5525546]
[1746069760181,30.4171,148.87,148.84,6.7182]
[1746069762183,23.7,148.9,148.86,6.7173]
[1746069762475,23.7,148.9,148.82,23.7]
[1746069762682,23.7,148.9,148.88,6.7164]
[1746069763782,23.7,148.93,148.84,4.0854]
[1746069763978,23.7,148.94,148.84,4.0854]
[1746069764684,6.7149,148.92,148.84,4.0854]
[1746069765183,13.42,149.03,148.85,7.10980764]
[1746069765383,7.10980764,148.99,148.86,23.7]
[1746069765577,23.7,148.98,148.86,23.7]
[1746069765777,6.7136,148.95,148.91,6.7149]
[1746069766184,6.7136,148.95,148.86,23.7]
[1746069766383,6.7136,148.95,148.91,6.7148]
[1746069766584,23.7,148.98,148.86,23.7]
[1746069767384,7.10980764,148.96,148.86,23.7]
[1746069767984,6.7145,148.93,148.89,6.7158]
[1746069768374,23.7,148.94,148.89,6.7158]
[1746069768579,6.7147,148.92,148.89,6.7158]
[1746069770681,23.7,148.94,148.89,6.7158]
[1746069770886,6.7143,148.93,148.9,6.7154]
[1746069771688,6.7147,148.92,148.89,6.7158]
[1746069771888,6.7147,148.92,148.86,23.7]
[1746069772691,6.7147,148.92,148.89,6.7158]
[1746069773386,6.7143,148.93,148.89,6.7158]
[1746069774690,6.7143,148.93,148.9,6.7155]
[1746069775091,6.7148,148.92,148.86,23.7]
[1746069775288,6.7148,148.92,148.88,6.716]
[1746069775589,6.7148,148.92,148.86,23.7]
[1746069775790,6.7143,148.93,148.86,23.7]
[1746069775989,6.7143,148.93,148.89,6.7156]
[1746069777788,6.7147,148.92,148.89,6.7156]
[1746069778086,23.7,148.94,148.84,4.0854]
[1746069778287,23.7,148.94,148.85,23.68]
[1746069778493,6.7149,148.92,148.85,23.68]
[1746069779594,6.7149,148.92,148.89,6.7157]
[1746069779890,6.7143,148.93,148.89,6.7157]
[1746069780091,23.7,148.94,148.89,6.7157]
[1746069781093,23.7,148.94,148.88,6.7164]
[1746069782996,6.7149,148.92,148.88,6.7164]
[1746069783298,6.7149,148.92,148.89,6.7159]
[1746069783487,23.7,148.94,148.85,23.68]
[1746069783997,6.7149,148.92,148.88,6.7161]
[1746069784400,23.7,148.94,148.88,6.7161]
[1746069784700,6.7149,148.92,148.88,6.7161]
[1746069786401,6.7149,148.92,148.85,23.68]
[1746069786402,6.7149,148.92,148.89,6.7159]
[1746069788001,6.7144,148.93,148.9,6.7155]
[1746069789005,6.7144,148.93,148.85,23.68]
[1746069789409,30.4139,148.94,148.85,23.68]
[1746069789705,30.4139,148.94,148.91,6.7148]
[1746069791004,6.7143,148.93,148.9,6.7154]
[1746069791205,4.54591936,148.93,148.87,4.54591936]
[1746069791506,6.7149,148.92,148.89,6.7155]
[1746069791707,6.7149,148.92,148.85,23.68]
[1746069791905,23.7,148.94,148.85,23.68]
[1746069792108,6.7144,148.93,148.9,6.7153]
[1746069793208,6.7144,148.93,148.9,12.3253]
[1746069793809,6.7147,148.92,148.9,12.3253]
[1746069794610,6.7151,148.91,148.9,5.61]
[1746069795109,23.7,148.94,148.9,5.61]
[1746069796209,6.7148,148.92,148.9,5.61]
[1746069796812,23.7,148.94,148.9,5.61]
[1746069797306,30.80457895,148.94,148.9,5.61]
[1746069797510,7.10457895,148.91,148.77,29.7352]
[1746069797705,7.10457895,148.88,148.77,29.7352]
[1746069797912,23.68,148.9,148.78,7.10457895]
[1746069798101,6.7167,148.88,148.84,6.7181]
[1746069798306,23.68,148.9,148.84,6.7181]
[1746069798617,23.68,148.9,148.82,23.68]
[1746069798806,23.68,148.9,148.83,29.6096]
[1746069799213,6.7162,148.89,148.85,6.7177]
[1746069800212,6.7165,148.88,148.85,6.7177]
[1746069802015,23.68,148.9,148.83,29.6096]
[1746069802310,6.7162,148.89,148.85,6.7177]
[1746069803614,6.7164,148.88,148.85,6.7177]
[1746069805216,6.7162,148.89,148.85,6.7177]
[1746069805411,6.7162,148.89,148.86,6.7172]
[1746069808420,6.7165,148.88,148.85,6.7177]
[1746069808719,23.68,148.9,148.83,29.6096]
[1746069809420,6.7165,148.88,148.84,6.7179]
[1746069810023,23.68,148.9,148.83,34.4188]
[1746069810320,23.68,148.9,148.83,4.0203]
[1746069811832,30.3956,148.9,148.87,6.7168]
[1746069812131,30.3956,148.9,148.83,4.0203]
[1746069812333,30.3956,148.9,148.86,6.7172]
[1746069812727,30.3956,148.9,148.83,4.0203]
[1746069813033,6.7161,148.89,148.83,4.0203]
[1746069814136,6.7168,148.88,148.83,4.0203]
[1746069814732,6.7169,148.87,148.85,6.7177]
[1746069816037,6.7166,148.88,148.85,6.7177]
[1746069816436,23.68,148.9,148.84,6.7182]
[1746069816735,23.68,148.9,148.83,4.0203]
[1746069816933,7.10457895,148.88,148.82,6.7189]
[1746069817339,6.7179,148.85,148.82,6.7189]
[1746069819438,6.7184,148.84,148.79,4.0681]
[1746069819731,23.68,148.86,148.79,4.0681]
[1746069819936,6.7189,148.83,148.8,6.7197]
[1746069823740,6.7192,148.82,148.79,10.7883]
[1746069824141,7.10457895,148.85,148.79,4.0681]